bitfinex/quotes_BTCUSD_20241123
["timestamp","ask_amount","ask_price","bid_price","bid_amount"]
[1732349598532,0.0473,98092.0,98040.0,0.023]
[1732349598766,0.0776,98091.0,98040.0,0.023]
[1732349599230,0.0776,98091.0,98045.0,0.1242]
[1732349599446,0.0776,98091.0,98049.0,0.0455]
[1732349599655,0.1249,98090.0,98051.0,0.0455]
[1732349599878,0.1249,98090.0,98050.0,0.023]
[1732349599879,0.1249,98090.0,98053.0,0.0455]
[1732349600090,0.1249,98090.0,98056.0,0.0455]
[1732349600537,0.0766,98089.0,98056.0,0.0455]
[1732349600765,0.0766,98089.0,98057.0,0.02914596]
[1732349603034,0.0766,98089.0,98057.0,0.07087338]
[1732349603253,0.0766,98089.0,98057.0,0.02914596]
[1732349603717,0.0483,98088.0,98057.0,0.02914596]
[1732349604401,0.0766,98087.0,98057.0,0.02914596]
[1732349606863,0.0483,98086.0,98057.0,0.02914596]
[1732349607770,0.0483,98086.0,98057.0,0.52286949]
[1732349608196,0.0766,98085.0,98057.0,0.52286949]
[1732349608414,0.0483,98084.0,98057.0,0.52286949]
[1732349608619,0.0483,98084.0,98057.0,0.02914596]
[1732349613110,0.1,98093.0,98057.0,0.02914596]
[1732349613111,0.0796,98083.0,98057.0,0.02914596]
[1732349613312,0.0489,98082.0,98057.0,0.02914596]
[1732349613535,0.0796,98081.0,98057.0,0.02914596]
[1732349614033,0.1262,98080.0,98057.0,0.02914596]
[1732349616044,0.1262,98080.0,98058.0,0.00101957]
[1732349616282,0.1262,98079.0,98057.0,0.02914596]
[1732349616494,0.0789,98078.0,98057.0,0.02914596]
[1732349617186,0.0473,98077.0,98057.0,0.02914596]
[1732349619383,0.04205864,98076.0,98057.0,0.02914596]
[1732349620750,0.0465,98075.0,98057.0,0.02914596]
[1732349625062,0.08573657,98089.0,98060.0,0.0479]
[1732349625290,0.08573657,98089.0,98061.0,0.0479]
[1732349626924,0.08573657,98091.0,98061.0,0.0479]
[1732349627117,0.08573657,98091.0,98060.0,0.0479]
[1732349627535,0.08573657,98091.0,98062.0,0.0479]
[1732349627782,0.51841495,98118.0,98056.0,0.04198693]
[1732349627783,0.48916001,98117.0,98064.0,0.023]
[1732349628001,0.0816,98129.0,98069.0,0.1273]
[1732349628237,0.0816,98129.0,98056.0,0.023]
[1732349628238,0.03930896,98114.0,98072.0,0.0794]
[1732349628453,0.0816,98113.0,98075.0,0.0479]
[1732349628684,0.0816,98113.0,98077.0,0.0479]
[1732349628900,0.0816,98113.0,98078.0,0.04891936]
[1732349629112,0.12090896,98113.0,98078.0,0.04891936]
[1732349629329,0.03930896,98106.0,98078.0,0.04891936]
[1732349629824,0.0816,98113.0,98078.0,0.04891936]
[1732349630484,0.03930896,98106.0,98078.0,0.04891936]
[1732349630704,0.03930896,98106.0,98079.0,0.02964679]
[1732349630935,0.03930896,98106.0,98081.0,0.0479]
[1732349631164,0.03930896,98106.0,98076.0,0.0794]
[1732349631165,0.0017206,98091.0,98082.0,0.00101936]
[1732349631356,0.0017206,98091.0,98084.0,0.0794]
[1732349631608,0.0017206,98091.0,98085.0,0.00101934]
[1732349631827,0.0017206,98091.0,98086.0,0.00101934]
[1732349632045,0.0017206,98091.0,98084.0,0.0794]
[1732349632046,0.0017206,98091.0,98088.0,0.0479]
[1732349632299,0.05491522,98113.0,98089.0,0.00101931]
[1732349633176,0.05491522,98113.0,98088.0,0.0479]
[1732349634160,0.05236837,98113.0,98088.0,0.0479]
[1732349635738,0.05236837,98113.0,98089.0,0.00101928]
[1732349636638,0.02145131,98113.0,98089.0,0.00101928]
[1732349637114,0.02145131,98113.0,98090.0,0.0794]
[1732349638229,0.02145131,98113.0,98091.0,0.0479]
[1732349638672,0.03930896,98117.0,98091.0,0.0479]
[1732349639359,0.03930896,98117.0,98092.0,0.00101928]
[1732349639589,0.03930896,98117.0,98091.0,0.0479]
[1732349640069,0.03930896,98117.0,98092.0,0.00101928]
[1732349640573,0.03930896,98117.0,98091.0,0.0479]
[1732349640818,0.03930896,98117.0,98091.0,0.07597174]
[1732349641274,0.03930896,98117.0,98091.0,0.0479]
[1732349644035,0.03930896,98117.0,98092.0,0.00101928]
[1732349644247,0.03930896,98117.0,98091.0,0.0479]
[1732349644989,0.1235,98116.0,98091.0,0.0479]
[1732349645663,0.1235,98116.0,98062.0,0.25994427]
[1732349645907,0.1235,98116.0,98063.0,0.023]
[1732349648599,0.1235,98116.0,98065.0,0.023]
[1732349648836,0.1235,98116.0,98069.0,0.023]
[1732349649106,0.1235,98116.0,98073.0,0.1507]
[1732349649354,0.0017192,98119.0,98062.0,0.30032681]
[1732349649355,0.03930896,98091.0,98067.0,0.0493]
[1732349649563,0.0768,98090.0,98067.0,0.0493]
[1732349649812,0.0467,98089.0,98068.0,0.00101951]
[1732349650027,0.0467,98089.0,98067.0,0.0493]
[1732349650688,0.0467,98089.0,98066.0,0.0784]
[1732349652316,0.01059231,98089.0,98066.0,0.0784]
[1732349652538,0.01059231,98089.0,98067.0,0.00101951]
[1732349652754,0.05144231,98090.0,98067.0,0.00101951]
[1732349653211,0.03930896,98077.0,98062.0,0.04038254]
[1732349653427,0.03930896,98077.0,98063.0,0.0010196]
[1732349653892,0.03930896,98077.0,98061.0,0.0008596]
[1732349653893,0.03930896,98077.0,98062.0,0.0010196]
[1732349654342,0.03930896,98077.0,98067.0,0.0008596]
[1732349655706,0.0768,98076.0,98067.0,0.0008596]
[1732349656636,0.0467,98075.0,98067.0,0.0008596]
[1732349656850,0.03930896,98068.0,98067.0,0.0008596]
[1732349659111,0.03391208,98068.0,98067.0,0.0008596]
[1732349659591,0.11531208,98068.0,98067.0,0.0008596]
[1732349660941,0.03391208,98068.0,98067.0,0.0008596]
[1732349661616,0.04666001,98075.0,98067.0,0.0008596]
[1732349661872,0.05473822,98090.0,98067.0,0.0008596]
[1732349663991,0.0814,98089.0,98067.0,0.0008596]
[1732349664671,0.0455,98088.0,98067.0,0.0008596]
[1732349667340,0.05473822,98080.0,98067.0,0.0008596]
[1732349667552,0.0814,98079.0,98067.0,0.0008596]
[1732349670671,0.0814,98087.0,98067.0,0.0008596]
[1732349670883,0.0814,98087.0,98068.0,0.02768713]
[1732349672700,0.0814,98087.0,98068.0,0.10468713]
[1732349673886,0.05473822,98080.0,98068.0,0.02768713]
[1732349674127,0.0814,98079.0,98068.0,0.02768713]
[1732349675459,0.0814,98079.0,98067.0,0.0008596]
[1732349675678,0.0455,98078.0,98020.0,0.023]
[1732349676118,0.0455,98078.0,98021.0,0.05036587]
[1732349677735,0.0814,98077.0,98021.0,0.05036587]
[1732349677985,0.0814,98077.0,98018.0,0.12368722]
[1732349678199,0.0814,98077.0,98016.0,0.1017192]
[1732349678691,0.0814,98077.0,98020.0,0.077]
[1732349678894,0.0814,98077.0,98018.0,0.1]
[1732349678895,0.0814,98077.0,98021.0,0.0471]
[1732349679121,0.0814,98077.0,98023.0,0.0471]
[1732349679371,0.0814,98077.0,98026.0,0.0751]
[1732349679610,0.0814,98077.0,98017.0,0.0017192]
[1732349679611,0.0814,98077.0,98030.0,0.0471]
[1732349679833,0.0814,98077.0,98033.0,0.0471]
[1732349680049,0.0814,98077.0,98034.0,0.0010198]
[1732349682111,0.0814,98077.0,98035.0,0.0471]
[1732349682329,0.0814,98077.0,98036.0,0.0761198]
[1732349683407,0.0814,98077.0,98037.0,0.0471]
[1732349683635,0.0814,98077.0,98039.0,0.0471]
[1732349683870,0.0814,98077.0,98040.0,0.0761198]
[1732349684341,0.0814,98077.0,98041.0,0.0471]
[1732349684550,0.0814,98077.0,98042.0,0.0010198]
[1732349685927,0.07093743,98077.0,98043.0,0.0471]
[1732349686169,0.07093743,98077.0,98044.0,0.07611976]
[1732349689460,0.07093743,98077.0,98044.0,0.1173546]
[1732349693213,0.07093743,98077.0,98044.0,0.1182146]
[1732349693439,0.07093743,98077.0,98045.0,0.0471]
[1732349693652,0.07093743,98077.0,98046.0,0.00101974]
[1732349693866,0.07093743,98077.0,98047.0,0.00101974]
[1732349694078,0.07093743,98077.0,98046.0,0.00101974]
[1732349695844,0.00101974,98076.0,98028.0,0.023]
[1732349696049,0.00101974,98076.0,98028.0,0.06521931]
[1732349696315,0.00101974,98076.0,98029.0,0.00101974]
[1732349697075,0.049,98075.0,98029.0,0.00101974]
[1732349697273,0.00101974,98074.0,98029.0,0.00101974]
[1732349697687,0.0781,98073.0,98029.0,0.00101974]
[1732349698327,0.0461,98073.0,98029.0,0.00101974]
[1732349698531,0.0461,98073.0,98030.0,0.0751]
[1732349698847,0.0461,98073.0,98031.0,0.07611971]
[1732349699050,0.0461,98073.0,98033.0,0.0754]
[1732349699220,0.0461,98073.0,98038.0,0.0489]
[1732349699389,0.0461,98073.0,98039.0,0.02401971]
[1732349700259,0.00579672,98073.0,98039.0,0.00101971]
[1732349700514,0.00512673,98075.0,98043.0,0.0754]
[1732349700669,0.00512673,98075.0,98046.0,0.023]
[1732349700869,0.00172,98079.0,98050.0,0.0754]
[1732349701090,0.00101974,98106.0,98052.0,0.0489]
[1732349701257,0.40640609,98105.0,98052.0,0.0489]
[1732349701895,0.05473822,98100.0,98052.0,0.0489]
[1732349702117,0.00101974,98099.0,98052.0,0.0489]
[1732349703617,0.0484,98097.0,98052.0,0.0489]
[1732349703867,0.05473822,98100.0,98043.0,0.04070641]
[1732349703868,0.0826,98094.0,98053.0,0.00101957]
[1732349704064,0.0826,98092.0,98044.0,0.0489]
[1732349704271,0.0826,98090.0,98044.0,0.0489]
[1732349704491,0.0484,98084.0,98044.0,0.0489]
[1732349704696,0.00172,98077.0,98044.0,0.0489]
[1732349704911,0.0826,98074.0,98039.0,0.00086]
[1732349705115,0.00172,98077.0,98009.0,0.1422512]
[1732349705116,0.08638115,98069.0,98012.0,0.05077382]
[1732349705333,0.0826,98064.0,98011.0,0.05004276]
[1732349705556,0.131,98056.0,98010.0,0.05098929]
[1732349705765,0.0826,98055.0,98010.0,0.05098929]
[1732349706872,0.0826,98055.0,98011.0,0.023]
[1732349707426,0.0826,98055.0,98013.0,0.023]
[1732349707643,0.0826,98053.0,98014.0,0.00101983]
[1732349707840,0.00101974,98052.0,98012.0,0.05077382]
[1732349708041,0.00101974,98052.0,98014.0,0.1243]
[1732349708355,0.00101974,98052.0,98016.0,0.05016429]
[1732349708572,0.00101974,98052.0,98018.0,0.0500785]
[1732349708905,0.00101974,98052.0,98017.0,0.05050051]
[1732349709090,0.0826,98050.0,98017.0,0.05050051]
[1732349709300,0.0484,98051.0,98017.0,0.05050051]
[1732349709301,0.0826,98048.0,98017.0,0.05050051]
[1732349709755,0.00101974,98047.0,98017.0,0.05050051]
[1732349709986,0.0826,98048.0,98017.0,0.05050051]
[1732349710393,0.00101974,98047.0,98017.0,0.05050051]
[1732349712003,0.04397913,98046.0,98017.0,0.05050051]
[1732349712913,0.0826,98045.0,98017.0,0.05050051]
[1732349714226,0.04725073,98045.0,98017.0,0.05050051]
[1732349715094,0.04725073,98045.0,98018.0,0.00101993]
[1732349715553,0.04725073,98045.0,98018.0,0.05109843]
[1732349716230,0.04725073,98045.0,98015.0,0.05028761]
[1732349716448,0.04725073,98045.0,98016.0,0.00051016]
[1732349716667,0.00745073,98045.0,98016.0,0.00051016]
[1732349716917,0.00026073,98045.0,98017.0,0.05021113]
[1732349717155,0.03512279,98046.0,98018.0,0.00137005]
[1732349718561,0.01612279,98046.0,98018.0,0.00137005]
[1732349719572,0.07137781,98056.0,98019.0,0.00101993]
[1732349720043,0.07981993,98055.0,98019.0,0.00101993]
[1732349721673,0.07981993,98055.0,98020.0,0.0464]
[1732349721893,0.07981993,98055.0,98021.0,0.00101993]
[1732349722356,0.07981993,98055.0,98001.0,0.023]
[1732349722357,0.0478,98053.0,98001.0,0.023]
[1732349722572,0.00127491,98052.0,98001.0,0.023]
[1732349722813,0.0788,98051.0,98003.0,0.023]
[1732349723077,0.04907491,98050.0,98004.0,0.00050997]
[1732349724157,0.01443043,98050.0,98005.0,0.0464]
[1732349724380,0.01443043,98050.0,98007.0,0.0464]
[1732349724591,0.01443043,98050.0,98008.0,0.04741993]
[1732349725025,0.01519538,98050.0,98008.0,0.04741993]
[1732349725525,0.01519538,98050.0,98010.0,0.0464]
[1732349725755,0.01519538,98050.0,98012.0,0.0464]
[1732349725873,0.01519538,98050.0,98013.0,0.00101993]
[1732349726277,0.05861538,98051.0,98013.0,0.00101993]
[1732349726546,0.05861538,98051.0,98014.0,0.0464]
[1732349726827,0.05861538,98051.0,98015.0,0.00101993]
[1732349727417,0.02512538,98051.0,98015.0,0.00101993]
[1732349727629,0.02512538,98051.0,98016.0,0.1231]
[1732349727830,0.02512538,98051.0,98017.0,0.00101993]
[1732349728640,0.07137781,98056.0,98017.0,0.00101993]
[1732349729482,0.0478,98050.0,98019.0,0.0464]
[1732349729683,0.0478,98050.0,98021.0,0.0464]
[1732349729684,0.01073,98050.0,98021.0,0.0464]
[1732349729912,0.01073,98050.0,98022.0,0.00101993]
[1732349731530,0.0788,98049.0,98022.0,0.00101993]
[1732349734540,0.07569858,98049.0,98022.0,0.00101993]
[1732349736501,0.07569858,98049.0,98023.0,0.0483]
[1732349736710,0.07569858,98049.0,98024.0,0.0776]
[1732349737133,0.07569858,98049.0,98025.0,0.00101993]
[1732349737427,0.03967955,98049.0,98025.0,0.00101993]
[1732349737636,0.02967955,98049.0,98026.0,0.0483]
[1732349737851,0.02967955,98049.0,98027.0,0.00101993]
[1732349738081,0.00202955,98050.0,98027.0,0.00101993]
[1732349738309,0.0017204,98051.0,98027.0,0.00101993]
[1732349738539,0.0017204,98051.0,98029.0,0.0776]
[1732349738750,0.05742821,98056.0,98030.0,0.00101993]
[1732349739521,0.05742821,98056.0,98031.0,0.0477]
[1732349739746,0.05742821,98056.0,98032.0,0.00101993]
[1732349740114,0.05742821,98068.0,98032.0,0.00101993]
[1732349740323,0.002,98092.0,98034.0,0.0477]
[1732349740324,0.05742821,98067.0,98034.0,0.0477]
[1732349740556,0.28956279,98076.0,98037.0,0.077]
[1732349740777,0.23712021,98076.0,98039.0,0.077]
[1732349741020,0.23712021,98076.0,98041.0,0.077]
[1732349741250,0.1241,98075.0,98042.0,0.0477]
[1732349742578,0.0017204,98051.0,98042.0,0.0477]
[1732349742805,0.0017204,98051.0,98043.0,0.077]
[1732349743248,0.0017204,98051.0,98044.0,0.00101975]
[1732349744806,0.0017204,98051.0,98043.0,0.077]
[1732349745267,0.0017204,98051.0,98018.0,0.023]
[1732349745491,0.0017204,98051.0,98020.0,0.023]
[1732349745710,0.0017204,98051.0,98044.0,0.03]
[1732349747696,0.0017204,98051.0,98044.0,0.0704124]
[1732349748159,0.0017204,98051.0,98044.0,0.03]
[1732349749733,0.0017204,98051.0,98005.0,0.03704264]
[1732349749946,0.0017204,98051.0,98009.0,0.04031763]
[1732349750381,0.0017204,98051.0,98002.0,0.03704264]
[1732349750615,0.0017204,98051.0,98005.0,0.09117525]
[1732349750826,0.0017204,98051.0,98005.0,0.05007108]
[1732349751716,0.0017204,98051.0,98006.0,0.023]
[1732349752133,0.0502204,98051.0,98006.0,0.023]
[1732349752577,0.002,98057.0,98010.0,0.023]
[1732349752791,0.002,98057.0,98015.0,0.0477]
[1732349752997,0.0776,98056.0,98017.0,0.0477]
[1732349753207,0.0776,98056.0,98019.0,0.0477]
[1732349753423,0.0776,98056.0,98020.0,0.0477]
[1732349753664,0.0756,98056.0,98020.0,0.0477]
[1732349753902,0.0776,98056.0,98020.0,0.0477]
[1732349754125,0.0756,98056.0,98020.0,0.0477]
[1732349754334,0.0017212,98051.0,98020.0,0.0477]
[1732349754546,0.0017212,98051.0,98018.0,0.077]
[1732349754746,0.0017212,98051.0,98019.0,0.0477]
[1732349754980,0.0037212,98051.0,98019.0,0.0477]
[1732349755744,0.0522212,98051.0,98019.0,0.0477]
[1732349756163,0.0756,98056.0,98019.0,0.0477]
[1732349756380,0.0756,98056.0,98020.0,0.0477]
[1732349759055,0.0496,98055.0,98020.0,0.0477]
[1732349759280,0.0797,98054.0,98020.0,0.0477]
[1732349759490,0.07837489,98054.0,98020.0,0.0477]
[1732349760700,0.07130141,98054.0,98020.0,0.0477]
[1732349760921,0.06733815,98054.0,98020.0,0.0477]
[1732349762699,0.03884504,98054.0,98020.0,0.0477]
[1732349762907,0.04608175,98055.0,98020.0,0.0477]
[1732349765787,0.0017212,98054.0,98020.0,0.0477]
[1732349765992,0.0797,98053.0,98020.0,0.0477]
[1732349767866,0.0797,98053.0,98019.0,0.05052372]
[1732349768258,0.0381552,98053.0,98020.0,0.08]
[1732349768670,0.03264554,98053.0,98020.0,0.08]
[1732349769102,0.00467486,98053.0,98020.0,0.08]
[1732349770427,5.041e-05,98053.0,98020.0,0.08]
[1732349770631,0.0467,98052.0,98020.0,0.08]
[1732349770865,0.0467,98052.0,98021.0,0.0489]
[1732349775497,0.0467,98052.0,98001.0,0.05021702]
[1732349775729,0.0467,98049.0,98003.0,0.05067749]
[1732349775975,0.0467,98048.0,98004.0,0.023]
[1732349776180,0.0776,98049.0,98004.0,0.023]
[1732349776387,0.0776,98049.0,98008.0,0.023]
[1732349776601,0.0017212,98054.0,98011.0,0.0489]
[1732349776896,0.0017212,98054.0,98013.0,0.0489]
[1732349777308,0.0017212,98054.0,98020.0,0.0008602]
[1732349777722,0.0017212,98054.0,98021.0,0.1316]
[1732349778849,0.0017212,98054.0,98021.0,0.17233941]
[1732349779065,0.0461,98054.0,98021.0,0.17233941]
[1732349779684,0.0763,98053.0,98021.0,0.17233941]
[1732349779889,0.0461,98052.0,98021.0,0.17233941]
[1732349781997,0.010989,98052.0,98021.0,0.17233941]
[1732349783947,0.06079297,98061.0,98021.0,0.17233941]
[1732349786390,0.06079297,98061.0,98022.0,0.0476]
[1732349787036,0.0461,98059.0,98022.0,0.0476]
[1732349787542,0.03933,98059.0,98022.0,0.0476]
[1732349787755,1e-08,98059.0,98024.0,0.0476]
[1732349787994,1e-08,98059.0,98025.0,0.0476]
[1732349788227,0.0763,98060.0,98025.0,0.0476]
[1732349788457,0.06756001,98060.0,98025.0,0.0476]
[1732349788687,0.12063299,98060.0,98025.0,0.0476]
[1732349789140,0.12063299,98060.0,98026.0,0.0476]
[1732349789372,0.10547299,98060.0,98028.0,0.0476]
[1732349789887,0.08713299,98060.0,98028.0,0.0476]
[1732349790329,0.0008603,98059.0,98028.0,0.0476]
[1732349791435,0.033,98058.0,98028.0,0.0476]
[1732349792118,0.08518455,98060.0,98028.0,0.0476]
[1732349792791,0.06079297,98058.0,98028.0,0.0476]
[1732349793017,0.06079297,98053.0,98028.0,0.0476]
[1732349794132,0.06079297,98052.0,98028.0,0.0476]
[1732349794331,0.06079297,98052.0,98029.0,0.00101994]
[1732349795321,0.0763,98051.0,98029.0,0.00101994]
[1732349795523,0.0763,98051.0,98030.0,0.0476]
[1732349795739,0.0763,98051.0,98031.0,0.00101996]
[1732349796195,0.04212869,98051.0,98031.0,0.00101996]
[1732349796438,0.03146869,98051.0,98031.0,0.00101996]
[1732349796665,0.09226166,98051.0,98030.0,0.0476]
[1732349799052,0.08893273,98051.0,98030.0,0.0476]
[1732349799526,0.0244923,98050.0,98030.0,0.0476]
[1732349800698,0.0141066,98050.0,98030.0,0.0476]
[1732349801853,0.023,98046.0,98030.0,0.0476]
[1732349802338,0.0371066,98046.0,98030.0,0.0476]
[1732349802869,0.0141066,98044.0,98030.0,0.0476]
[1732349804014,0.023,98046.0,98030.0,0.0476]
[1732349804015,0.0014466,98046.0,98030.0,0.0476]
[1732349804248,0.1,98047.0,98030.0,0.0476]
[1732349804731,0.03575001,98047.0,98030.0,0.0476]
[1732349804972,0.03137001,98047.0,98030.0,0.0476]
[1732349808348,0.02813976,98051.0,98030.0,0.0476]
[1732349808349,0.02365164,98051.0,98030.0,0.0476]
[1732349810074,0.0238602,98059.0,98030.0,0.0476]
[1732349811498,0.023,98057.0,98030.0,0.0476]
[1732349811959,0.023,98057.0,98031.0,0.0789]
[1732349812188,0.023,98057.0,98033.0,0.0488]
[1732349814990,0.04612009,98056.0,98030.0,0.0017206]
[1732349815232,0.023,98055.0,98030.0,0.0017206]
[1732349815457,0.00102009,98054.0,98030.0,0.0017206]
[1732349817071,0.00102009,98054.0,98030.0,0.04343741]
[1732349817304,0.00102009,98054.0,98030.0,0.0017206]
[1732349817983,0.00102009,98054.0,98031.0,0.1231]
[1732349818873,0.00102009,98054.0,98031.0,0.0781]
[1732349819111,0.00102009,98054.0,98030.0,0.0017206]
[1732349819112,0.00102009,98054.0,98032.0,0.0464]
[1732349819354,0.00102009,98056.0,98034.0,0.0464]
[1732349819600,0.00102009,98055.0,98034.0,0.0464]
[1732349819839,0.00102009,98056.0,98034.0,0.0464]
[1732349820089,0.00102009,98055.0,98034.0,0.0464]
[1732349820329,0.00102009,98056.0,98034.0,0.0464]
[1732349820580,0.00102009,98055.0,98034.0,0.0464]
[1732349820831,0.00102009,98056.0,98034.0,0.0464]
[1732349821079,0.23798051,98057.0,98034.0,0.0464]
[1732349821331,0.023,98055.0,98034.0,0.0464]
[1732349822086,0.023,98055.0,98034.0,0.08770054]
[1732349825457,0.023,98055.0,98018.0,0.02300819]
[1732349825975,0.0499,98054.0,98026.0,0.25]
[1732349827052,0.03144905,98054.0,98027.0,0.0458]
[1732349827733,0.0778,98053.0,98027.0,0.0458]
[1732349828631,0.06566417,98053.0,98027.0,0.0458]
[1732349829272,0.06566417,98053.0,98027.0,0.08666988]
[1732349829995,0.05473822,98050.0,98027.0,0.08666988]
[1732349830230,0.0499,98049.0,98027.0,0.08666988]
[1732349831581,0.0778,98048.0,98027.0,0.08666988]
[1732349840269,0.0778,98048.0,98027.0,0.08753008]
[1732349840956,0.02827099,98048.0,98027.0,0.08753008]
[1732349845772,0.02827099,98048.0,98028.0,0.0768]
[1732349849862,0.04769448,98049.0,98028.0,0.0768]
[1732349850092,0.04425099,98049.0,98029.0,0.0170716]
[1732349850300,0.0017206,98054.0,98030.0,0.0484]
[1732349850731,0.0017206,98054.0,98033.0,0.0768]
[1732349850956,0.0017206,98054.0,98034.0,0.0484]
[1732349853309,0.0017206,98053.0,98034.0,0.0484]
[1732349854488,0.1298,98052.0,98034.0,0.0484]
[1732349854713,0.1298,98052.0,98027.0,0.04173008]
[1732349854938,0.1298,98052.0,98027.0,0.0484]
[1732349855151,0.0481,98051.0,98027.0,0.0484]
[1732349856703,0.0481,98049.0,98026.0,0.11821708]
[1732349862147,0.0817,98052.0,98027.0,0.0494]
[1732349862357,0.05473822,98060.0,98028.0,0.1303]
[1732349862504,0.023,98057.0,98028.0,0.1303]
[1732349862722,0.023,98057.0,98029.0,0.02055716]
[1732349862939,0.023,98057.0,98038.0,0.40419607]
[1732349863372,0.023,98057.0,98038.0,0.45359607]
[1732349863591,0.023,98057.0,98039.0,0.0809]
[1732349863748,0.0238602,98059.0,98039.0,0.48509607]
[1732349863953,0.0238602,98059.0,98040.0,0.00634178]
[1732349864174,0.0238602,98059.0,98041.0,0.00634178]
[1732349864377,0.0238602,98059.0,98042.0,0.00634178]
[1732349864629,0.0238602,98059.0,98043.0,0.00634178]
[1732349864840,0.0238602,98059.0,98044.0,0.00634178]
[1732349865131,0.023,98057.0,98039.0,0.52535122]
[1732349867154,0.023,98057.0,98040.0,0.40419607]
[1732349867822,0.023,98057.0,98039.0,0.52535122]
[1732349868168,0.023,98057.0,98040.0,0.40419607]
[1732349870806,0.023,98057.0,98040.0,0.40422528]
[1732349872450,0.023,98057.0,98046.0,0.40422528]
[1732349873034,0.023,98057.0,98047.0,0.00634178]
[1732349873232,0.023,98057.0,98048.0,0.00634178]
[1732349873442,0.0349,98058.0,98049.0,0.00634178]
[1732349873649,0.0349,98058.0,98050.0,0.00634178]
[1732349873878,0.0349,98058.0,98039.0,0.12115515]
[1732349873879,0.0349,98058.0,98051.0,0.00634178]
[1732349874077,0.0349,98058.0,98052.0,0.00634178]
[1732349874274,0.0349,98058.0,98053.0,0.00634178]
[1732349874486,0.0349,98058.0,98054.0,0.00634178]
[1732349874684,0.0349,98058.0,98055.0,0.00634178]
[1732349874898,0.0349,98058.0,98056.0,0.00634178]
[1732349875073,0.0349,98058.0,98047.0,0.40422528]
[1732349875510,0.0008602,98059.0,98047.0,0.40422528]
[1732349876738,0.0238602,98059.0,98047.0,0.40422528]
[1732349877424,0.0238602,98059.0,98040.0,0.0008602]
[1732349881722,0.05473822,98060.0,98040.0,0.0008602]
[1732349882160,0.05473822,98060.0,98041.0,0.0467]
[1732349882577,0.24631849,98064.0,98041.0,0.0467]
[1732349882785,0.05473822,98060.0,98041.0,0.0467]
[1732349884393,0.24631849,98064.0,98042.0,0.0757]
[1732349884628,0.05473822,98060.0,98043.0,0.0467]
[1732349885542,0.0349,98064.0,98043.0,0.0467]
[1732349886022,0.05473822,98060.0,98043.0,0.0467]
[1732349887664,0.24631849,98069.0,98043.0,0.0467]
[1732349887873,0.20632288,98075.0,98050.0,0.0467]
[1732349888093,0.16565685,98075.0,98057.0,0.0467]
[1732349889006,0.0017204,98069.0,98057.0,0.0467]
[1732349890787,0.16565685,98075.0,98057.0,0.0467]
[1732349890788,0.0349,98080.0,98057.0,0.0467]
[1732349891019,0.0349,98080.0,98032.0,0.0187043]
[1732349891020,0.08963822,98080.0,98032.0,0.0187043]
[1732349891246,0.08963822,98080.0,98041.0,0.0187043]
[1732349891523,0.05473822,98070.0,98041.0,0.0187043]
[1732349891733,0.0458,98069.0,98028.0,0.04250004]
[1732349891968,0.0458,98069.0,98029.0,0.01918507]
[1732349894138,0.0458,98069.0,98033.0,0.0757]
[1732349894361,0.0458,98069.0,98035.0,0.0757]
[1732349894603,0.0458,98069.0,98037.0,0.0757]
[1732349894849,0.0458,98069.0,98029.0,0.01918507]
[1732349894850,0.0458,98069.0,98039.0,0.0757]
[1732349895052,0.0458,98069.0,98043.0,0.0467]
[1732349895546,0.0458,98069.0,98044.0,0.00634075]
[1732349895778,0.0458,98069.0,98043.0,0.0467]
[1732349895779,0.0458,98069.0,98045.0,0.00634075]
[1732349896186,0.0458,98069.0,98046.0,0.00634075]
[1732349896420,0.0458,98069.0,98046.0,0.01648601]
[1732349896632,0.0458,98069.0,98048.0,0.0757]
[1732349896839,0.26565685,98091.0,98047.0,0.00634075]
[1732349896840,0.16565685,98076.0,98049.0,0.0467]
[1732349897054,0.16565685,98076.0,98050.0,0.12874075]
[1732349897274,0.16565685,98076.0,98051.0,0.00634075]
[1732349897499,0.16565685,98076.0,98052.0,0.00634075]
[1732349897709,0.05473822,98070.0,98052.0,0.00634075]
[1732349897898,0.05473822,98070.0,98053.0,0.00634075]
[1732349898150,0.05473822,98070.0,98054.0,0.00634075]
[1732349898582,0.05473822,98070.0,98055.0,0.00634075]
[1732349898817,0.05473822,98070.0,98056.0,0.00634075]
[1732349899127,0.00329048,98070.0,98057.0,0.00634075]
[1732349899435,0.00329048,98070.0,98050.0,0.1224]
[1732349901174,0.00501128,98070.0,98050.0,0.1224]
[1732349901385,0.00501128,98070.0,98050.0,0.52585759]
[1732349901612,0.00501128,98070.0,98050.0,0.03313844]
[1732349901838,0.0462,98069.0,98039.0,0.0008604]
[1732349902035,0.0462,98069.0,98039.0,0.03463517]
[1732349902244,0.0462,98069.0,98039.0,0.0008604]
[1732349904731,0.0462,98069.0,98040.0,0.1284]
[1732349905535,0.0462,98069.0,98041.0,0.0461]
[1732349905743,0.0462,98069.0,98039.0,0.0008604]
[1732349905744,0.0462,98069.0,98042.0,0.1284]
[1732349906519,0.0462,98069.0,98043.0,0.1284]
[1732349906968,0.0103995,98069.0,98043.0,0.1284]
[1732349907205,0.05473822,98090.0,98045.0,0.1284]
[1732349907411,0.05473822,98080.0,98046.0,0.0461]
[1732349907635,0.05473822,98080.0,98047.0,0.0823]
[1732349907845,0.05473822,98080.0,98049.0,0.0823]
[1732349908059,0.16565685,98093.0,98044.0,0.00453618]
[1732349908060,0.16565685,98093.0,98053.0,0.0461]
[1732349908289,0.05473822,98090.0,98056.0,0.0823]
[1732349908503,0.05473822,98090.0,98059.0,0.0461]
[1732349908711,0.05473822,98090.0,98061.0,0.0461]
[1732349910235,0.0462,98089.0,98061.0,0.0461]
[1732349910482,0.0462,98089.0,98062.0,0.00634011]
[1732349910691,0.0462,98089.0,98063.0,0.00634011]
[1732349910898,0.0462,98089.0,98064.0,0.00634011]
[1732349911101,0.0462,98089.0,98065.0,0.00634011]
[1732349911242,0.0462,98089.0,98066.0,0.00634011]
[1732349911456,0.0462,98089.0,98061.0,0.0461]
[1732349912082,0.12212459,98099.0,98061.0,0.0461]
[1732349912308,0.05473822,98110.0,98065.0,0.0461]
[1732349912516,0.05473822,98110.0,98069.0,0.0461]
[1732349912750,0.05473822,98110.0,98071.0,0.0461]